[Event "NJSK 2024 C"]
[Site "Groningen, Netherlands"]
[Date "2024.04.29"]
[Round "4.12"]
[White "Van Haaften, Jelle"]
[Black "Lalkota, Sai Pranav Tejas"]
[Result "0-1"]
[TimeControl "90min/40moves + 30min + 30sec/move"]
[WhiteElo "1655"]
[BlackElo "1782"]

1. c4 {[%clk 01:30:47]} {[%emt 00:00:11]} e5 {[%clk 01:30:51]} {[%emt
00:00:11]} 2. Nc3 {[%clk 01:31:11]} {[%emt 00:00:06]} Nc6 {[%clk 01:31:14]}
{[%emt 00:00:08]} 3. g3 {[%clk 01:31:35]} {[%emt 00:00:06]} g6 {[%clk
01:31:33]} {[%emt 00:00:10]} 4. Bg2 {[%clk 01:31:59]} {[%emt 00:00:06]} Bg7
{[%clk 01:31:53]} {[%emt 00:00:09]} 5. d3 {[%clk 01:32:22]} {[%emt 00:00:09]}
Nge7 {[%clk 01:32:01]} {[%emt 00:00:21]} 6. e4 {[%clk 01:32:38]} {[%emt
00:00:13]} d6 {[%clk 01:32:24]} {[%emt 00:00:08]} 7. Nge2 {[%clk 01:33:04]}
{[%emt 00:00:04]} O-O {[%clk 01:32:46]} {[%emt 00:00:08]} 8. O-O {[%clk
01:33:30]} {[%emt 00:00:04]} f5 {[%clk 01:33:12]} {[%emt 00:00:05]} 9. a3
{[%clk 01:31:04]} {[%emt 00:02:56]} a5 {[%clk 01:32:19]} {[%emt 00:01:22]} 10.
Rb1 {[%clk 01:29:59]} {[%emt 00:01:35]} Be6 {[%clk 01:29:24]} {[%emt 00:03:26]}
11. b4 {[%emt 00:03:16]} axb4 {[%clk 01:29:33]} {[%emt 00:00:18]} 12. axb4
{[%clk 01:27:33]} {[%emt 00:00:11]} f4 {[%clk 01:29:35]} {[%emt 00:00:29]} 13.
gxf4 {[%clk 01:21:17]} {[%emt 00:06:46]} exf4 {[%clk 01:29:57]} {[%emt
00:00:09]} 14. f3 {[%clk 01:13:09]} {[%emt 00:08:37]} g5 {[%clk 01:28:14]}
{[%emt 00:02:12]} 15. Nd5 {[%clk 01:11:27]} {[%emt 00:02:13]} Ne5 {[%clk
01:27:41]} {[%emt 00:01:03]} 16. c5 {[%clk 01:09:08]} {[%emt 00:02:49]} Nxd5
{[%clk 01:25:20]} {[%emt 00:02:51]} 17. Qb3 {[%clk 01:08:13]} {[%emt 00:01:24]}
c6 {[%clk 01:25:14]} {[%emt 00:00:36]} 18. exd5 {[%clk 01:07:49]} {[%emt
00:00:55]} Bxd5 {[%clk 01:25:26]} {[%emt 00:00:17]} 19. Qc2 {[%clk 01:07:23]}
{[%emt 00:00:57]} g4 {[%clk 01:23:26]} {[%emt 00:02:31]} 20. Nxf4 {[%clk
01:06:23]} {[%emt 00:01:28]} Ra2 {[%clk 01:22:29]} {[%emt 00:01:28]} 21. Qd1
{[%clk 01:05:55]} {[%emt 00:00:58]} gxf3 {[%clk 01:13:52]} {[%emt 00:09:08]} 22.
Bxf3 {[%clk 01:00:01]} {[%emt 00:06:24]} Nxf3+ {[%clk 01:14:01]} {[%emt
00:00:21]} 23. Rxf3 {[%clk 00:58:15]} {[%emt 00:02:16]} Bd4+ {[%clk 01:14:21]}
{[%emt 00:00:10]} 24. Kh1 {[%clk 00:51:45]} {[%emt 00:06:59]} Qh4 {[%clk
01:12:50]} {[%emt 00:02:01]} 25. Bd2 {[%clk 00:48:48]} {[%emt 00:03:28]} Rxd2
{[%clk 01:10:48]} {[%emt 00:02:31]} 26. Qxd2 {[%clk 00:48:36]} {[%emt
00:00:42]} Bxf3+ {[%clk 01:10:19]} {[%emt 00:01:00]} 27. Ng2 {[%clk 00:48:47]}
{[%emt 00:00:18]} Be5 {[%clk 01:10:27]} {[%emt 00:00:22]} 0-1

[Event "NJSK 2024 C"]
[Site "Groningen, Netherlands"]
[Date "2024.04.29"]
[Round "4.13"]
[White "Guillaumond, Matthieu"]
[Black "Kors, Siebe"]
[Result "1-0"]
[TimeControl "90min/40moves + 30min + 30sec/move"]
[WhiteElo "1945"]
[BlackElo "1668"]

1. e4 {[%clk 01:30:58]} {[%emt 00:00:01]} e5 {[%clk 01:30:53]} {[%emt
00:00:07]} 2. Nf3 {[%clk 01:31:17]} {[%emt 00:00:11]} Nc6 {[%clk 01:30:15]}
{[%emt 00:01:08]} 3. d4 {[%clk 01:31:09]} {[%emt 00:00:37]} exd4 {[%clk
01:29:59]} {[%emt 00:00:47]} 4. Nxd4 {[%clk 01:31:31]} {[%emt 00:00:08]} Nxd4
{[%clk 01:29:32]} {[%emt 00:00:57]} 5. Qxd4 {[%clk 01:31:54]} {[%emt 00:00:08]}
d6 {[%clk 01:29:24]} {[%emt 00:00:37]} 6. Nc3 {[%clk 01:32:05]} {[%emt
00:00:20]} c6 {[%clk 01:28:45]} {[%emt 00:01:06]} 7. Bf4 {[%clk 01:31:30]}
{[%emt 00:01:07]} Qf6 {[%clk 01:24:42]} {[%emt 00:04:29]} 8. e5 {[%clk
01:30:13]} {[%emt 00:01:51]} dxe5 {[%clk 01:24:32]} {[%emt 00:00:40]} 9. Bxe5
{[%clk 01:30:34]} {[%emt 00:00:09]} Qe7 {[%clk 01:23:41]} {[%emt 00:01:21]} 10.
O-O-O {[%clk 01:30:47]} {[%emt 00:00:17]} f6 {[%clk 01:23:22]} {[%emt
00:00:47]} 11. Bf4 {[%clk 01:29:32]} {[%emt 00:01:48]} Be6 {[%clk 01:22:00]}
{[%emt 00:01:50]} 12. Bc4 {[%clk 01:29:26]} {[%emt 00:00:38]} Kf7 {[%clk
01:18:05]} {[%emt 00:04:23]} 13. Rhe1 {[%clk 01:28:30]} {[%emt 00:01:27]} Kg6
{[%clk 01:09:19]} {[%emt 00:09:14]} 14. Rxe6 {[%clk 01:27:51]} {[%emt
00:01:11]} Qc5 {[%clk 01:08:24]} {[%emt 00:01:25]} 15. Qd3+ {[%clk 01:27:00]}
{[%emt 00:01:21]} Qf5 {[%clk 01:07:56]} {[%emt 00:00:56]} 16. Qg3+ {[%clk
01:27:16]} {[%emt 00:00:17]} 1-0

[Event "NJSK 2024 C"]
[Site "Groningen, Netherlands"]
[Date "2024.04.29"]
[Round "4.14"]
[White "Winter, Sven"]
[Black "Stylianou, Alexandros"]
[Result "1-0"]
[TimeControl "90min/40moves + 30min + 30sec/move"]
[WhiteElo "1768"]
[BlackElo "1642"]

1. e4 {[%clk 01:30:58]} {[%emt 00:00:01]} c5 {[%clk 01:30:52]} {[%emt
00:00:09]} 2. Nf3 {[%clk 01:31:22]} {[%emt 00:00:05]} Nc6 {[%clk 01:31:12]}
{[%emt 00:00:10]} 3. Bb5 {[%clk 01:31:48]} {[%emt 00:00:04]} g6 {[%clk
01:30:52]} {[%emt 00:00:50]} 4. O-O {[%clk 01:32:11]} {[%emt 00:00:07]} Bg7
{[%clk 01:31:12]} {[%emt 00:00:10]} 5. c3 {[%clk 01:32:33]} {[%emt 00:00:08]}
Qc7 {[%clk 01:31:03]} {[%emt 00:00:39]} 6. d4 {[%clk 01:32:24]} {[%emt
00:00:38]} a6 {[%clk 01:30:33]} {[%emt 00:01:01]} 7. Ba4 {[%clk 01:31:27]}
{[%emt 00:01:27]} b5 {[%clk 01:29:42]} {[%emt 00:01:22]} 8. Bc2 {[%clk
01:31:49]} {[%emt 00:00:07]} e6 {[%clk 01:29:51]} {[%emt 00:00:21]} 9. d5
{[%clk 01:28:32]} {[%emt 00:03:47]} Na7 {[%clk 01:27:04]} {[%emt 00:03:17]} 10.
d6 {[%clk 01:25:48]} {[%emt 00:03:14]} Qa5 {[%clk 01:26:08]} {[%emt 00:01:24]}
11. Be3 {[%clk 01:25:00]} {[%emt 00:01:20]} b4 {[%clk 01:25:55]} {[%emt
00:00:43]} 12. e5 {[%clk 01:21:29]} {[%emt 00:03:59]} Bb7 {[%clk 01:23:58]}
{[%emt 00:02:29]} 13. Nbd2 {[%clk 01:21:14]} {[%emt 00:00:44]} bxc3 {[%clk
01:21:06]} {[%emt 00:03:22]} 14. bxc3 {[%clk 01:18:27]} {[%emt 00:03:18]} Bxf3
{[%clk 01:14:03]} {[%emt 00:07:32]} 15. Qxf3 {[%clk 01:18:26]} {[%emt
00:00:32]} Nc6 {[%clk 01:13:38]} {[%emt 00:00:56]} 16. Nc4 {[%emt 00:12:14]}
Qxc3 {[%clk 01:11:21]} 17. Be4 {[%clk 01:08:10]} {[%emt 00:01:46]} Rc8 {[%clk
01:11:07]} {[%emt 00:00:46]} 18. Bxc6 {[%clk 01:05:16]} {[%emt 00:03:23]} Rxc6
{[%clk 01:10:59]} {[%emt 00:00:38]} 19. Rab1 {[%clk 01:04:41]} {[%emt
00:01:05]} Rc8 {[%clk 01:08:54]} {[%emt 00:02:35]} 20. Qb7 {[%clk 01:05:00]}
{[%emt 00:00:11]} Ne7 {[%clk 01:01:28]} {[%emt 00:07:56]} 21. dxe7 {[%clk
01:04:57]} {[%emt 00:00:32]} Kxe7 {[%clk 01:01:43]} {[%emt 00:00:14]} 22. Rfd1
{[%clk 01:04:44]} {[%emt 00:00:44]} Rhd8 {[%clk 01:01:02]} {[%emt 00:01:11]} 23.
Nb6 {[%clk 01:04:43]} {[%emt 00:00:31]} Bxe5 {[%clk 00:53:00]} {[%emt
00:08:33]} 24. Rxd7+ {[%clk 01:04:31]} {[%emt 00:00:42]} Kf8 {[%clk 00:50:15]}
{[%emt 00:03:14]} 25. Nxc8 {[%clk 01:04:19]} {[%emt 00:00:41]} Rxd7 {[%clk
00:48:47]} {[%emt 00:02:00]} 26. Qxd7 {[%clk 01:04:40]} {[%emt 00:00:09]} Kg7
{[%clk 00:48:39]} {[%emt 00:00:37]} 27. Nd6 {[%clk 01:04:59]} {[%emt 00:00:12]}
Bxd6 {[%clk 00:47:44]} {[%emt 00:01:25]} 28. Qxd6 {[%clk 01:05:21]} {[%emt
00:00:08]} Kf6 {[%clk 00:46:46]} {[%emt 00:01:27]} 29. Bxc5 {[%clk 01:05:43]}
{[%emt 00:00:08]} Kf5 {[%clk 00:46:42]} {[%emt 00:00:34]} 30. Bd4 {[%clk
01:05:56]} {[%emt 00:00:18]} Qd2 {[%clk 00:42:34]} {[%emt 00:04:38]} 31. Qe5+
{[%clk 01:06:13]} {[%emt 00:00:12]} Kg4 {[%clk 00:42:35]} {[%emt 00:00:29]} 32.
Be3 {[%clk 01:05:58]} {[%emt 00:00:44]} 1-0

[Event "NJSK 2024 C"]
[Site "Groningen, Netherlands"]
[Date "2024.04.30"]
[Round "5.1"]
[White "Chua, Ethan"]
[Black "Groenewoud, Joel"]
[Result "1-0"]
[TimeControl "90min/40moves + 30min + 30sec/move"]
[WhiteElo "2000"]
[BlackElo "2030"]

1. e4 {[%clk 01:30:28]} {[%emt 00:00:31]} c6 {[%clk 01:30:55]} {[%emt
00:00:05]} 2. d4 {[%clk 01:30:56]} {[%emt 00:00:03]} d5 {[%clk 01:31:22]}
{[%emt 00:00:04]} 3. e5 {[%clk 01:31:23]} {[%emt 00:00:02]} c5 {[%clk
01:31:48]} {[%emt 00:00:04]} 4. dxc5 {[%clk 01:31:50]} {[%emt 00:00:03]} e6
{[%clk 01:32:14]} {[%emt 00:00:04]} 5. Nf3 {[%clk 01:32:07]} {[%emt 00:00:13]}
Bxc5 {[%clk 01:32:24]} {[%emt 00:00:20]} 6. a3 {[%clk 01:32:35]} {[%emt
00:00:02]} Nd7 {[%clk 01:29:24]} {[%emt 00:03:30]} 7. b4 {[%clk 01:32:44]}
{[%emt 00:00:20]} Be7 {[%clk 01:29:28]} {[%emt 00:00:27]} 8. Bb2 {[%clk
01:32:48]} {[%emt 00:00:26]} a5 {[%clk 01:29:40]} {[%emt 00:00:19]} 9. b5
{[%clk 01:30:10]} {[%emt 00:03:07]} Nh6 {[%clk 01:29:56]} {[%emt 00:00:13]} 10.
Nbd2 {[%clk 01:28:56]} {[%emt 00:01:44]} f6 {[%clk 01:29:07]} {[%emt 00:01:20]}
11. c4 {[%clk 01:19:56]} {[%emt 00:09:30]} Nxe5 {[%clk 01:22:39]} {[%emt
00:06:58]} 12. Nxe5 {[%clk 01:18:02]} {[%emt 00:02:24]} fxe5 {[%clk 01:23:01]}
{[%emt 00:00:08]} 13. Bxe5 {[%clk 01:14:10]} {[%emt 00:04:21]} O-O {[%clk
01:21:56]} {[%emt 00:01:35]} 14. Be2 {[%clk 01:09:17]} {[%emt 00:05:24]} b6
{[%clk 01:11:52]} {[%emt 00:10:34]} 15. O-O {[%clk 01:08:09]} {[%emt 00:01:37]}
Bb7 {[%clk 01:05:21]} {[%emt 00:07:01]} 16. Nf3 {[%clk 00:57:13]} {[%emt
00:11:27]} Nf7 {[%clk 00:59:42]} {[%emt 00:06:09]} 17. Bb2 {[%clk 00:50:46]}
{[%emt 00:06:56]} Bf6 {[%clk 00:58:14]} {[%emt 00:01:59]} 18. Bxf6 {[%clk
00:48:18]} {[%emt 00:02:58]} Qxf6 {[%clk 00:58:33]} {[%emt 00:00:10]} 19. cxd5
{[%clk 00:48:40]} {[%emt 00:00:09]} exd5 {[%clk 00:58:33]} {[%emt 00:00:29]} 20.
Rc1 {[%clk 00:44:49]} {[%emt 00:04:21]} Rac8 {[%clk 00:53:20]} {[%emt
00:05:44]} 21. Qd4 {[%clk 00:35:21]} {[%emt 00:09:58]} Qh6 {[%clk 00:49:04]}
{[%emt 00:04:46]} 22. Nd2 {[%clk 00:31:42]} {[%emt 00:04:09]} Qd6 {[%clk
00:33:47]} {[%emt 00:15:46]} 23. Bg4 {[%clk 00:27:52]} {[%emt 00:04:20]} Rce8
{[%clk 00:30:37]} {[%emt 00:03:38]} 24. Rfd1 {[%clk 00:25:52]} {[%emt
00:02:33]} Ne5 {[%clk 00:25:48]} {[%emt 00:05:19]} 25. Be2 {[%clk 00:19:58]}
{[%emt 00:06:22]} Ng6 {[%clk 00:19:08]} {[%emt 00:07:11]} 26. Bf3 {[%clk
00:11:37]} {[%emt 00:08:52]} Rf4 {[%clk 00:17:25]} {[%emt 00:02:13]} 27. Nc4
{[%clk 00:10:57]} {[%emt 00:01:10]} Qe6 {[%clk 00:11:04]} {[%emt 00:06:51]} 28.
Qxb6 {[%clk 00:09:59]} {[%emt 00:01:28]} Rxf3 {[%clk 00:02:20]} {[%emt
00:09:13]} 29. Qxb7 {[%clk 00:05:11]} {[%emt 00:05:18]} Rd3 {[%clk 00:00:47]}
{[%emt 00:02:03]} 30. Ne3 {[%clk 00:03:24]} {[%emt 00:02:17]} Nf4 {[%clk
00:01:13]} {[%emt 00:00:04]} 31. Rxd3 {[%clk 00:03:13]} {[%emt 00:00:41]} Nxd3
{[%clk 00:01:35]} {[%emt 00:00:08]} 32. Rc7 {[%clk 00:03:22]} {[%emt 00:00:21]}
Qf6 {[%clk 00:02:01]} {[%emt 00:00:05]} 33. Qxd5+ {[%clk 00:03:06]} {[%emt
00:00:14]} 1-0

[Event "NJSK 2024 C"]
[Site "Groningen, Netherlands"]
[Date "2024.04.30"]
[Round "5.2"]
[White "Ritzerveld, Noah"]
[Black "Aravindhan, Achyuth"]
[Result "1-0"]
[TimeControl "90min/40moves + 30min + 30sec/move"]
[WhiteElo "2103"]
[BlackElo "2071"]

1. e4 {[%clk 01:30:57]} {[%emt 00:00:02]} c5 {[%clk 01:30:57]} {[%emt
00:00:05]} 2. Nf3 {[%clk 01:31:23]} {[%emt 00:00:03]} Nc6 {[%clk 01:31:24]}
{[%emt 00:00:03]} 3. d4 {[%clk 01:31:46]} {[%emt 00:00:07]} cxd4 {[%clk
01:31:50]} {[%emt 00:00:04]} 4. Nxd4 {[%clk 01:32:11]} {[%emt 00:00:05]} Nf6
{[%clk 01:32:16]} {[%emt 00:00:05]} 5. Nc3 {[%clk 01:32:34]} {[%emt 00:00:06]}
e5 {[%clk 01:32:43]} {[%emt 00:00:03]} 6. Ndb5 {[%clk 01:32:58]} {[%emt
00:00:06]} d6 {[%clk 01:33:10]} {[%emt 00:00:04]} 7. Bg5 {[%clk 01:32:48]}
{[%emt 00:00:39]} a6 {[%clk 01:33:35]} {[%emt 00:00:05]} 8. Na3 {[%clk
01:33:11]} {[%emt 00:00:06]} b5 {[%clk 01:34:03]} {[%emt 00:00:04]} 9. Nab1
{[%clk 01:32:30]} {[%emt 00:01:10]} Be7 {[%clk 01:34:20]} {[%emt 00:00:14]} 10.
Bxf6 {[%clk 01:32:48]} {[%emt 00:00:11]} Bxf6 {[%clk 01:34:44]} {[%emt
00:00:07]} 11. a4 {[%clk 01:33:11]} {[%emt 00:00:07]} b4 {[%clk 01:35:02]}
{[%emt 00:00:12]} 12. Nd5 {[%clk 01:33:36]} {[%emt 00:00:05]} O-O {[%clk
01:34:55]} {[%emt 00:00:36]} 13. Bc4 {[%clk 01:33:57]} {[%emt 00:00:09]} Bg5
{[%clk 01:33:20]} {[%emt 00:02:06]} 14. O-O {[%clk 01:34:11]} {[%emt 00:00:15]}
Kh8 {[%clk 01:26:32]} {[%emt 00:07:19]} 15. Qd3 {[%clk 01:31:05]} {[%emt
00:03:35]} f5 {[%clk 01:23:48]} {[%emt 00:03:14]} 16. Nd2 {[%clk 01:28:36]}
{[%emt 00:02:59]} a5 {[%clk 01:06:53]} {[%emt 00:17:25]} 17. Rad1 {[%clk
01:20:13]} {[%emt 00:08:53]} Bh6 {[%clk 00:57:35]} {[%emt 00:09:47]} 18. c3
{[%clk 01:06:35]} {[%emt 00:14:08]} bxc3 {[%clk 00:49:42]} {[%emt 00:08:24]} 19.
bxc3 {[%clk 01:06:13]} {[%emt 00:00:52]} Ne7 {[%clk 00:44:27]} {[%emt
00:05:46]} 20. Nxe7 {[%clk 01:01:38]} {[%emt 00:05:04]} Qxe7 {[%clk 00:44:29]}
{[%emt 00:00:28]} 21. Bd5 {[%clk 00:59:33]} {[%emt 00:02:35]} Ba6 {[%clk
00:41:56]} {[%emt 00:03:03]} 22. c4 {[%clk 00:58:18]} {[%emt 00:01:45]} Rab8
{[%clk 00:37:19]} {[%emt 00:05:07]} 23. exf5 {[%clk 00:56:06]} {[%emt
00:02:42]} Bxd2 {[%clk 00:35:56]} {[%emt 00:01:53]} 24. Rxd2 {[%clk 00:54:47]}
{[%emt 00:01:48]} Rb4 {[%clk 00:34:23]} {[%emt 00:02:04]} 25. Be6 {[%clk
00:53:16]} {[%emt 00:02:00]} Rxa4 {[%clk 00:25:34]} {[%emt 00:09:20]} 26. Qxd6
{[%clk 00:46:46]} {[%emt 00:07:00]} Qxd6 {[%clk 00:25:50]} {[%emt 00:00:14]} 27.
Rxd6 {[%clk 00:47:11]} {[%emt 00:00:05]} Bxc4 {[%clk 00:26:04]} {[%emt
00:00:16]} 28. Rfd1 {[%clk 00:43:31]} {[%emt 00:04:10]} h5 {[%clk 00:14:17]}
{[%emt 00:12:16]} 29. h4 {[%clk 00:37:09]} {[%emt 00:06:52]} Rf6 {[%clk
00:05:06]} {[%emt 00:09:42]} 30. Rc6 {[%clk 00:35:20]} {[%emt 00:02:19]} Bxe6
{[%clk 00:04:37]} {[%emt 00:00:59]} 31. fxe6 {[%clk 00:35:37]} {[%emt
00:00:13]} Rd4 {[%clk 00:04:45]} {[%emt 00:00:22]} 32. Rxd4 {[%clk 00:36:02]}
{[%emt 00:00:05]} 1-0

[Event "NJSK 2024 C"]
[Site "Groningen, Netherlands"]
[Date "2024.04.30"]
[Round "5.3"]
[White "Terlouw, Wouter"]
[Black "Kurt, Sascha"]
[Result "1/2-1/2"]
[TimeControl "90min/40moves + 30min + 30sec/move"]
[WhiteElo "1961"]
[BlackElo "2096"]

1. d4 {[%clk 01:30:57]} {[%emt 00:00:02]} d5 {[%clk 01:30:52]} {[%emt
00:00:08]} 2. c4 {[%clk 01:30:00]} {[%emt 00:01:28]} e6 {[%clk 01:31:18]}
{[%emt 00:00:05]} 3. Nf3 {[%clk 01:29:31]} {[%emt 00:00:58]} Nf6 {[%clk
01:31:43]} {[%emt 00:00:06]} 4. g3 {[%clk 01:29:53]} {[%emt 00:00:07]} dxc4
{[%clk 01:32:08]} {[%emt 00:00:05]} 5. Bg2 {[%clk 01:30:10]} {[%emt 00:00:13]}
c5 {[%clk 01:32:30]} {[%emt 00:00:08]} 6. O-O {[%clk 01:27:59]} {[%emt
00:02:40]} Nc6 {[%clk 01:32:50]} {[%emt 00:00:11]} 7. dxc5 {[%clk 01:27:53]}
{[%emt 00:00:36]} Qxd1 {[%clk 01:33:13]} 8. Rxd1 {[%clk 01:27:53]} Bxc5 {[%clk
01:33:36]} {[%emt 00:00:20]} 9. Nbd2 {[%clk 01:27:54]} {[%emt 00:00:53]} c3
{[%clk 01:33:58]} {[%emt 00:00:09]} 10. bxc3 {[%clk 01:28:19]} {[%emt
00:00:05]} O-O {[%clk 01:34:17]} {[%emt 00:00:09]} 11. Nb3 {[%clk 01:27:59]}
{[%emt 00:00:51]} Be7 {[%clk 01:34:37]} {[%emt 00:00:10]} 12. Nbd4 {[%clk
01:18:38]} {[%emt 00:09:50]} Nxd4 {[%clk 01:34:56]} {[%emt 00:00:12]} 13. cxd4
{[%clk 01:18:59]} {[%emt 00:00:08]} Nd5 {[%clk 01:34:46]} {[%emt 00:00:40]} 14.
Bd2 {[%clk 01:18:15]} {[%emt 00:01:14]} f5 {[%clk 01:35:09]} {[%emt 00:00:08]}
15. Ne5 {[%clk 01:14:22]} {[%emt 00:04:23]} Bd6 {[%clk 01:30:47]} {[%emt
00:04:51]} 16. Rab1 {[%clk 01:13:07]} {[%emt 00:01:46]} b6 {[%clk 01:29:32]}
{[%emt 00:01:46]} 17. a4 {[%clk 01:09:20]} {[%emt 00:04:16]} Ba6 {[%clk
01:20:14]} {[%emt 00:09:48]} 18. e4 {[%clk 01:06:50]} {[%emt 00:03:00]} fxe4
{[%clk 01:19:34]} {[%emt 00:01:10]} 19. Bxe4 {[%clk 01:05:04]} {[%emt
00:02:16]} Rfc8 {[%clk 00:58:58]} {[%emt 00:21:06]} 20. a5 {[%clk 00:53:49]}
{[%emt 00:11:45]} Rab8 {[%clk 00:49:16]} {[%emt 00:10:12]} 21. axb6 {[%clk
00:47:40]} {[%emt 00:06:38]} Nxb6 {[%clk 00:45:33]} {[%emt 00:04:14]} 22. Bg2
{[%clk 00:35:54]} {[%emt 00:12:15]} Bb7 {[%clk 00:35:28]} {[%emt 00:10:36]} 23.
Bb4 {[%clk 00:30:55]} {[%emt 00:05:29]} Bxe5 {[%clk 00:34:10]} {[%emt
00:01:48]} 24. dxe5 {[%clk 00:30:04]} {[%emt 00:01:20]} Bxg2 {[%clk 00:33:30]}
{[%emt 00:01:10]} 25. Kxg2 {[%clk 00:30:28]} {[%emt 00:00:06]} Nd5 {[%clk
00:33:49]} {[%emt 00:00:12]} 26. Bd6 {[%clk 00:30:39]} {[%emt 00:00:18]} Rxb1
{[%clk 00:34:06]} {[%emt 00:00:13]} 27. Rxb1 {[%clk 00:31:07]} {[%emt
00:00:02]} a5 {[%clk 00:33:30]} {[%emt 00:01:06]} 28. Ra1 {[%clk 00:28:24]}
{[%emt 00:03:13]} Ra8 {[%clk 00:33:55]} {[%emt 00:00:06]} 29. Kf3 {[%clk
00:27:12]} {[%emt 00:01:41]} a4 {[%clk 00:33:29]} {[%emt 00:00:56]} 30. Ke4
{[%clk 00:26:52]} {[%emt 00:00:49]} Kf7 {[%clk 00:28:02]} {[%emt 00:05:58]} 31.
Kd4 {[%clk 00:26:46]} {[%emt 00:00:32]} g5 {[%clk 00:26:11]} {[%emt 00:02:25]}
32. Kc4 {[%clk 00:22:35]} {[%emt 00:04:41]} Kg6 {[%clk 00:26:02]} {[%emt
00:00:38]} 33. Kb5 {[%clk 00:22:05]} {[%emt 00:01:00]} g4 {[%clk 00:25:11]}
{[%emt 00:01:23]} 34. Ra3 {[%clk 00:19:36]} {[%emt 00:02:58]} Kf5 {[%clk
00:23:45]} {[%emt 00:01:55]} 35. Rd3 {[%clk 00:17:00]} {[%emt 00:03:03]} Ke4
{[%clk 00:22:38]} {[%emt 00:01:41]} 36. Ra3 {[%clk 00:17:24]} {[%emt 00:00:07]}
Kd4 {[%clk 00:20:30]} {[%emt 00:02:36]} 37. Rxa4+ {[%clk 00:16:52]} {[%emt
00:01:03]} Rxa4 {[%clk 00:20:58]} {[%emt 00:00:02]} 38. Kxa4 {[%clk 00:17:21]}
{[%emt 00:00:01]} Nc3+ {[%clk 00:21:00]} {[%emt 00:00:27]} 39. Kb4 {[%clk
00:15:29]} {[%emt 00:02:23]} Nd1 {[%clk 00:20:59]} {[%emt 00:00:31]} 40. Bc7
{[%clk 00:13:16]} {[%emt 00:02:43]} Nb2 {[%clk 00:13:30]} {[%emt 00:07:58]} 41.
Kb3 {[%clk 00:09:14]} {[%emt 00:04:33]} Nd3 {[%clk 00:13:34]} {[%emt 00:00:26]}
42. Kc2 {[%clk 00:09:38]} {[%emt 00:00:06]} Ne1+ {[%clk 00:13:44]} {[%emt
00:00:20]} 43. Kd2 {[%clk 00:09:38]} {[%emt 00:00:30]} Nf3+ {[%clk 00:14:09]}
{[%emt 00:00:05]} 44. Ke2 {[%clk 00:10:02]} {[%emt 00:00:06]} Nxh2 {[%clk
00:14:35]} {[%emt 00:00:04]} 45. Bb8 {[%clk 00:10:01]} {[%emt 00:00:27]} Ke4
{[%clk 00:14:49]} {[%emt 00:00:20]} 46. Bc7 {[%clk 00:10:17]} {[%emt 00:00:14]}
Nf3 {[%clk 00:15:12]} {[%emt 00:00:07]} 47. Kf1 {[%clk 00:10:40]} {[%emt
00:00:06]} Nxe5 {[%clk 00:15:30]} {[%emt 00:00:12]} 48. Kg2 {[%clk 00:10:39]}
{[%emt 00:00:31]} Nd3 {[%clk 00:15:22]} {[%emt 00:00:39]} 49. Ba5 {[%clk
00:10:49]} {[%emt 00:00:20]} Nb2 {[%clk 00:15:05]} {[%emt 00:00:46]} 50. Bc3
{[%clk 00:09:48]} {[%emt 00:01:31]} Nc4 {[%clk 00:15:03]} {[%emt 00:00:32]} 51.
Bb4 {[%clk 00:10:09]} {[%emt 00:00:10]} e5 {[%clk 00:15:02]} {[%emt 00:00:31]}
52. Bc5 {[%clk 00:09:48]} {[%emt 00:00:50]} Kd3 {[%clk 00:14:05]} {[%emt
00:01:28]} 53. Kf1 {[%clk 00:09:38]} {[%emt 00:00:40]} Nd2+ {[%clk 00:13:06]}
{[%emt 00:01:29]} 54. Ke1 {[%clk 00:09:55]} {[%emt 00:00:11]} Ne4 {[%clk
00:13:23]} {[%emt 00:00:14]} 55. Bb6 {[%clk 00:10:11]} {[%emt 00:00:13]} Nd6
{[%clk 00:13:24]} {[%emt 00:00:28]} 56. Kf1 {[%clk 00:10:06]} {[%emt 00:00:38]}
Nf5 {[%clk 00:13:30]} {[%emt 00:00:23]} 57. Bc7 {[%clk 00:10:02]} {[%emt
00:00:27]} e4 {[%clk 00:13:45]} {[%emt 00:00:23]} 58. Bf4 {[%clk 00:10:08]}
{[%emt 00:00:24]} Ne7 {[%clk 00:13:17]} {[%emt 00:00:56]} 59. Bg5 {[%clk
00:09:55]} {[%emt 00:00:36]} Nd5 {[%clk 00:13:38]} {[%emt 00:00:18]} 60. Bh6
{[%clk 00:10:08]} {[%emt 00:00:14]} Nb6 {[%clk 00:13:04]} {[%emt 00:01:07]} 61.
Be3 {[%clk 00:10:04]} {[%emt 00:00:33]} Nc4 {[%clk 00:13:29]} {[%emt 00:00:06]}
62. Bf4 {[%clk 00:10:01]} {[%emt 00:00:28]} Nd2+ {[%clk 00:13:37]} {[%emt
00:00:26]} 63. Ke1 {[%clk 00:10:23]} {[%emt 00:00:06]} Nf3+ {[%clk 00:13:41]}
{[%emt 00:00:29]} 64. Kf1 {[%clk 00:10:44]} {[%emt 00:00:07]} h5 {[%clk
00:14:00]} {[%emt 00:00:13]} 65. Bh6 {[%clk 00:10:45]} {[%emt 00:00:28]} Nd4
{[%clk 00:13:49]} {[%emt 00:00:42]} 66. Be3 {[%clk 00:10:40]} {[%emt 00:00:34]}
Nf5 {[%clk 00:13:24]} {[%emt 00:00:57]} 67. Bf4 {[%clk 00:11:05]} {[%emt
00:00:06]} Nd4 {[%clk 00:11:34]} {[%emt 00:02:20]} 68. Be3 {[%clk 00:11:23]}
{[%emt 00:00:12]} Nb3 {[%clk 00:11:57]} {[%emt 00:00:07]} 69. Bh6 {[%clk
00:11:14]} {[%emt 00:00:38]} Nd4 {[%clk 00:11:37]} {[%emt 00:00:50]} 70. Be3
{[%emt 00:01:05]} 1/2-1/2